fUST/lending_fUST_20241002
["ID","MTS","AMOUNT","RATE_DAILY","PERIOD"]
[339648385,1727802639105,-500.0,0.00015135,2]
[339648386,1727802639115,-500.0,0.00015135,2]
[339648387,1727802639124,-500.0,0.00015135,2]
[339648388,1727802639134,-500.0,0.00015135,2]
[339648389,1727802639143,-500.0,0.00015135,2]
[339648390,1727802639152,-500.0,0.00015135,2]
[339648391,1727802639161,-500.0,0.00015135,2]
[339648392,1727802639171,-500.0,0.00015135,2]
[339648393,1727802639182,-500.0,0.00015135,2]
[339648394,1727802639191,-500.0,0.00015135,2]
[339648395,1727802639200,-500.0,0.00015135,2]
[339648396,1727802639209,-500.0,0.00015135,2]
[339648397,1727802639218,-500.0,0.00015135,2]
[339648398,1727802639228,-500.0,0.00015135,2]
[339648399,1727802639237,-500.0,0.00015135,2]
[339648400,1727802639246,-500.0,0.00015135,2]
[339648401,1727802639255,-500.0,0.00015135,2]
[339648402,1727802639264,-597.53515954,0.00015135,2]
[339648403,1727802639274,-500.0,0.00015135,2]
[339648404,1727802639283,-500.0,0.00015135,2]
[339648405,1727802639293,-500.0,0.00015135,2]
[339648406,1727802639302,-500.0,0.00015135,2]
[339648407,1727802639311,-500.0,0.00015135,2]
[339648408,1727802639321,-153.96675785,0.00015135,2]
[339648409,1727802639330,-500.0,0.00015135,2]
[339648410,1727802639340,-500.0,0.00015135,2]
[339648411,1727802639349,-500.0,0.00015135,2]
[339648412,1727802639358,-500.0,0.00015135,2]
[339648413,1727802639367,-500.0,0.00015135,2]
[339648414,1727802639376,-500.0,0.00015135,2]
[339648415,1727802639385,-500.0,0.00015135,2]
[339648416,1727802639395,-500.0,0.00015135,2]
[339648417,1727802639404,-500.0,0.00015135,2]
[339648418,1727802639415,-500.0,0.00015135,2]
[339648419,1727802639425,-500.0,0.00015135,2]
[339648420,1727802639438,-500.0,0.00015135,2]
[339648421,1727802639448,-37919.8050435,0.00015136,2]
[339648422,1727802639457,-27097.65562376,0.00015136,2]
[339648436,1727802640352,-35224.82147684,0.00015136,2]
[339648438,1727802640361,-225.35338985,0.00015136,2]
[339648440,1727802640371,-477.21727953,0.00015136,2]
[339648442,1727802640380,-500.0,0.00015136,2]
[339648444,1727802640389,-500.0,0.00015136,2]
[339648446,1727802640398,-237.70562788,0.00015136,2]
[339648449,1727802640408,-419.5021287,0.00015136,2]
[339648451,1727802640418,-500.0,0.00015136,2]
[339648453,1727802640427,-500.0,0.00015136,2]
[339648455,1727802640438,-500.0,0.00015136,2]
[339648456,1727802640448,-500.0,0.00015136,2]
[339648457,1727802640457,-500.0,0.00015136,2]
[339648458,1727802640466,-539.61510082,0.00015136,2]
[339648459,1727802640475,-500.0,0.00015136,2]
[339648460,1727802640485,-500.0,0.00015136,2]
[339648461,1727802640494,-500.0,0.00015136,2]
[339648462,1727802640504,-500.0,0.00015136,2]
[339648463,1727802640513,-550.0,0.00015136,2]
[339648464,1727802640523,-151.0,0.00015137,2]
[339648465,1727802640533,-113759.41513,0.00015137,2]
[339648466,1727802640542,-186967.431302,0.00015137,2]
[339648467,1727802640551,-66144.53480728,0.00015147,2]
[339648501,1727802646514,-500.0,0.00015135,2]
[339648502,1727802646525,-500.0,0.00015135,2]
[339648503,1727802646535,-500.0,0.00015135,2]
[339648504,1727802646545,-500.0,0.00015135,2]
[339648505,1727802646555,-500.0,0.00015135,2]
[339648506,1727802646565,-500.0,0.00015135,2]
[339648507,1727802646575,-500.0,0.00015135,2]
[339648508,1727802646585,-500.0,0.00015135,2]
[339648509,1727802646596,-500.0,0.00015135,2]
[339648510,1727802646605,-300.93145175,0.00015135,2]
[339648511,1727802646616,-199.06854825,0.00015135,2]
[339648512,1727802646628,-500.0,0.00015135,2]
[339648513,1727802646640,-500.0,0.00015135,2]
[339648514,1727802646651,-500.0,0.00015135,2]
[339648515,1727802646660,-500.0,0.00015135,2]
[339648516,1727802646673,-500.0,0.00015135,2]
[339648517,1727802646686,-500.0,0.00015135,2]
[339648518,1727802646697,-500.0,0.00015135,2]
[339648519,1727802646706,-500.0,0.00015135,2]
[339648520,1727802646715,-500.0,0.00015135,2]
[339648521,1727802646726,-500.0,0.00015135,2]
[339648522,1727802646736,-500.0,0.00015135,2]
[339648523,1727802646746,-500.0,0.00015135,2]
[339648524,1727802646756,-500.0,0.00015135,2]
[339648525,1727802646766,-375.0,0.00015135,2]
[339648526,1727802646775,-500.0,0.00015135,2]
[339648527,1727802646785,-500.0,0.00015135,2]
[339648528,1727802646795,-500.0,0.00015135,2]
[339648529,1727802646806,-500.0,0.00015135,2]
[339648530,1727802646815,-500.0,0.00015135,2]
[339648531,1727802646824,-106709.70466403,0.00015147,2]
[339648532,1727802646834,-151.0,0.00015147,2]
[339648533,1727802646845,-190.93114898,0.00015173,2]
[339648534,1727802646856,-500.0,0.00015173,2]
[339648535,1727802646866,-500.0,0.00015173,2]
[339648536,1727802646876,-500.0,0.00015173,2]
[339648537,1727802646886,-500.0,0.00015173,2]
[339648538,1727802646896,-500.0,0.00015173,2]
[339648539,1727802646906,-500.0,0.00015173,2]
[339648540,1727802646916,-647.93843106,0.00015173,2]
[339648541,1727802646925,-504.56312819,0.00015173,2]
[339648542,1727802646939,-599.96151405,0.00015173,2]
[339648543,1727802646950,-182.49903814,0.00015173,2]
[339648544,1727802646959,-197.97836138,0.00015173,2]
[339648545,1727802646969,-500.0,0.00015173,2]
[339648546,1727802646979,-500.0,0.00015173,2]
[339648547,1727802646988,-500.0,0.00015173,2]
[339648548,1727802646998,-500.0,0.00015173,2]
[339648549,1727802647008,-319.60699222,0.00015173,2]
[339648557,1727803441415,400.0,0.00021,60]
[339648563,1727803540155,500.0,0.00021,60]
[339648570,1727803742622,5000.0,0.00010201,2]
[339648632,1727803834845,-300.0,0.00010958,2]
[339648634,1727803834857,-300.0,0.00010958,2]
[339648636,1727803834866,-17.83,0.00010959,2]
[339648637,1727803834878,-447.72,0.00010959,2]
[339648638,1727803834887,-957.07,0.00010959,2]
[339648639,1727803834897,-797.56,0.00010959,2]
[339648640,1727803834907,-664.63,0.00010959,2]
[339648641,1727803834917,-553.86,0.00010959,2]
[339648642,1727803834927,-461.55,0.00010959,2]
[339648643,1727803834936,-384.63,0.00010959,2]
[339648644,1727803834946,-320.52,0.00010959,2]
[339648645,1727803834956,-267.1,0.00010959,2]
[339648647,1727803834966,-178.998761,0.00011467,2]
[339648648,1727803834975,-4465.7939795,0.00011933,2]
[339648650,1727803834985,-420.0,0.00012042,2]
[339648651,1727803834994,-420.0,0.00012054,2]
[339648652,1727803835004,-178.998761,0.00012071,2]
[339648653,1727803835014,-178.998761,0.00012674,2]
[339648654,1727803835031,-210.361739,0.00013056,2]
[339648655,1727803835040,-210.361739,0.0001306,2]
[339648656,1727803835049,-210.361739,0.00013063,2]
[339648657,1727803835060,-210.361739,0.00013067,2]
[339648658,1727803835070,-210.361739,0.0001307,2]
[339648659,1727803835079,-210.361739,0.00013073,2]
[339648660,1727803835088,-210.361739,0.00013077,2]
[339648661,1727803835097,-210.361739,0.0001308,2]
[339648662,1727803835107,-210.361739,0.00013084,2]
[339648663,1727803835117,-210.361739,0.00013087,2]
[339648664,1727803835281,-210.361739,0.00013091,2]
[339648665,1727803835300,-210.361739,0.00013094,2]
[339648666,1727803835309,-210.361739,0.00013097,2]
[339648667,1727803835319,-210.361739,0.00013101,2]
[339648668,1727803835332,-210.361739,0.00013104,2]
[339648669,1727803835341,-210.361739,0.00013108,2]
[339648670,1727803835351,-210.361739,0.00013111,2]
[339648671,1727803835360,-210.361739,0.00013115,2]
[339648672,1727803835371,-210.361739,0.00013118,2]
[339648673,1727803835380,-210.361739,0.00013121,2]
[339648674,1727803835389,-587.0,0.00013233,2]
[339648675,1727803835399,-424.0,0.00013259,2]
[339648676,1727803835410,-14834.33495743,0.00013537,2]
[339648677,1727803835422,-3091.55,0.00013537,2]
[339648697,1727803838552,-807.91293106,0.00013536,2]
[339648699,1727803838563,-6974.11504257,0.00013537,2]
[339648701,1727803838575,-8414.7519822,0.00013699,2]
[339648702,1727803838585,-500.0,0.000137,2]
[339648703,1727803838595,-193.24751998,0.000138,2]
[339648704,1727803838605,-154.0,0.000139,2]
[339648705,1727803838614,-205.022407,0.00013991,2]
[339648707,1727803838624,-1080.95011719,0.00014,2]
[339648708,1727803838636,-320.81642117,0.00014,2]
[339648709,1727803838648,-998.78690022,0.00014,2]
[339648711,1727803838660,-6131.0,0.00014,2]
[339648713,1727803838689,-610.97533461,0.00014,2]
[339648714,1727803838699,-205.022407,0.00014029,2]
[339648715,1727803838709,-205.022407,0.00014068,2]
[339648716,1727803838719,-205.022407,0.00014106,2]
[339648717,1727803838729,-154.0,0.0001413,2]
[339648718,1727803838739,-205.022407,0.00014144,2]
[339648719,1727803838748,-205.022407,0.00014183,2]
[339648720,1727803838758,-205.022407,0.00014221,2]
[339648721,1727803838770,-205.022407,0.0001426,2]
[339648722,1727803838781,-196.98800315,0.00014275,2]
[339648723,1727803838790,-205.022407,0.00014298,2]
[339648724,1727803838800,-205.022407,0.00014336,2]
[339648725,1727803838809,-154.0,0.0001437,2]
[339648726,1727803838819,-205.022407,0.00014375,2]
[339648727,1727803838828,-205.022407,0.00014413,2]
[339648728,1727803838838,-205.022407,0.00014452,2]
[339648729,1727803838847,-153.0,0.00014478,2]
[339648730,1727803838857,-153.0,0.00014478,2]
[339648731,1727803838866,-153.0,0.00014478,2]
[339648732,1727803838876,-205.022407,0.0001449,2]
[339648733,1727803838885,-205.022407,0.00014528,2]
[339648734,1727803838895,-823.0,0.00014543,2]
[339648735,1727803838905,-205.022407,0.00014567,2]
[339648736,1727803838914,-153.0,0.000146,2]
[339648737,1727803838924,-154.0,0.000146,2]
[339648738,1727803838933,-205.022407,0.00014605,2]
[339648739,1727803838943,-205.022407,0.00014643,2]
[339648740,1727803838953,-196.98800314,0.00014661,2]
[339648741,1727803838962,-205.022407,0.00014682,2]
[339648742,1727803838972,-205.022407,0.0001472,2]
[339648743,1727803838982,-150.0,0.0001481,2]
[339648744,1727803838991,-4195.78657278,0.00015,7]
[339648745,1727803839000,-21340.00795986,0.00015002,2]
[339648746,1727803839012,-23583.00883127,0.00015002,2]
[339648747,1727803839027,-742.13013147,0.00015002,2]
[339648794,1727803840706,-4230.1737174,0.00015002,2]
[339648795,1727803840716,-1971.1262826,0.00015003,2]
[339648796,1727803840728,-271.03154081,0.00015003,2]
[339648799,1727803840740,-4950.94488241,0.00015003,2]
[339648800,1727803840749,-196.98800314,0.00015047,2]
[339648802,1727803840758,-500.0,0.00015058,2]
[339648804,1727803840768,-3351.2714951,0.00015086,2]
[339648806,1727803840784,-1000.0,0.00015092,2]
[339648808,1727803840800,-600.0,0.000151,2]
[339648810,1727803840809,-1242.91547051,0.00015122,2]
[339648812,1727803840818,-240.77106398,0.00015125,2]
[339648814,1727803840829,-500.0,0.00015134,2]
[339648816,1727803840839,-500.0,0.00015134,2]
[339648818,1727803840849,-500.0,0.00015134,2]
[339648820,1727803840860,-500.0,0.00015134,2]
[339648822,1727803840869,-500.0,0.00015134,2]
[339648824,1727803840880,-294.88402267,0.00015134,2]
[339648826,1727803840890,-500.0,0.00015134,2]
[339648827,1727803840899,-500.0,0.00015134,2]
[339648829,1727803840908,-500.0,0.00015134,2]
[339648831,1727803840917,-500.0,0.00015134,2]
[339648833,1727803840926,-500.0,0.00015134,2]
[339648834,1727803840935,-500.0,0.00015134,2]
[339648836,1727803840944,-510.44657921,0.00015134,2]
[339648837,1727803840953,-500.0,0.00015134,2]
[339648839,1727803840963,-159.75351595,0.00015134,2]
[339648841,1727803840972,-500.0,0.00015134,2]
[339648843,1727803840981,-500.0,0.00015134,2]
[339648844,1727803840990,-500.0,0.00015134,2]
[339648846,1727803841000,-500.0,0.00015134,2]
[339648848,1727803841009,-500.0,0.00015134,2]
[339648850,1727803841018,-500.0,0.00015134,2]
[339648851,1727803841036,-500.0,0.00015134,2]
[339648853,1727803841046,-500.0,0.00015134,2]
[339648855,1727803841055,-500.0,0.00015134,2]
[339648857,1727803841065,-500.0,0.00015134,2]
[339648859,1727803841076,-500.0,0.00015134,2]
[339648861,1727803841085,-500.0,0.00015134,2]
[339648863,1727803841095,-500.0,0.00015134,2]
[339648865,1727803841104,-500.0,0.00015134,2]
[339648866,1727803841113,-500.0,0.00015134,2]
[339648867,1727803841123,-631.43469171,0.00015134,2]
[339648868,1727803841132,-500.0,0.00015134,2]
[339648869,1727803841142,-500.0,0.00015134,2]
[339648870,1727803841152,-500.0,0.00015134,2]
[339648871,1727803841161,-500.0,0.00015134,2]
[339648872,1727803841170,-500.0,0.00015134,2]
[339648873,1727803841180,-500.0,0.00015134,2]
[339648874,1727803841189,-32455.8322625,0.00015135,2]
[339648875,1727803841199,-53219.4207453,0.00015135,2]
[339648876,1727803841208,-227.974379,0.00015137,2]
[339648877,1727803841218,-151.0,0.00015137,2]
[339648878,1727803841227,-63670.3128258,0.00015145,2]
[339648879,1727803841578,-2474.22198148,0.00015145,2]
[339648880,1727803841588,-151.0,0.00015147,2]
[339648881,1727803841597,-600.0,0.00015156,2]
[339648882,1727803841607,-235.64827276,0.00015156,2]
[339648883,1727803841617,-232.40440113,0.00015156,2]
[339648884,1727803841627,-500.0,0.00015156,2]
[339648885,1727803841636,-525.25054305,0.00015156,2]
[339648886,1727803841646,-4425.73679418,0.00015157,2]
[339648887,1727803841658,-12458.09925,0.00015157,2]
[339648973,1727803843738,-781.67,0.00010959,2]
[339648974,1727803843747,-1668.33,0.00015157,2]
[339648975,1727803843758,-2094.25000657,0.00015157,2]
[339649135,1727803846671,-1000.0,0.00015035,2]
[339649137,1727803846681,-11809.41621175,0.00015157,2]
[339649139,1727803846691,-53219.4207453,0.00015157,2]
[339649141,1727803846700,-30000.0,0.00015167,2]
[339649143,1727803846709,-500.0,0.00015173,2]
[339649146,1727803846720,-500.0,0.00015173,2]
[339649149,1727803846729,-308.24858825,0.00015173,2]
[339649151,1727803846739,-173.34970353,0.00015173,2]
[339649154,1727803846748,-500.0,0.00015173,2]
[339649157,1727803846759,-500.0,0.00015173,2]
[339649160,1727803846768,-500.0,0.00015173,2]
[339649163,1727803846784,-500.0,0.00015173,2]
[339649165,1727803846794,-500.0,0.00015173,2]
[339649167,1727803846804,-500.0,0.00015173,2]
[339649170,1727803846814,-500.0,0.00015173,2]
[339649173,1727803846824,-151.0,0.00015176,2]
[339649175,1727803846834,-151.0,0.00015176,2]
[339649178,1727803846846,-151.0,0.00015176,2]
[339649180,1727803846856,-32455.8322625,0.0001518,2]
[339649183,1727803846866,-53219.4207453,0.0001518,2]
[339649186,1727803846875,-151.0,0.000152,2]
[339649189,1727803846886,-150.112234,0.000152,2]
[339649192,1727803846896,-150.112233,0.000152,2]
[339649193,1727803846906,-150.112233,0.000152,2]
[339649195,1727803846918,-150.112233,0.000152,2]
[339649197,1727803846929,-150.112233,0.000152,2]
[339649199,1727803846940,-150.112233,0.000152,2]
[339649200,1727803846950,-150.112233,0.000152,2]
[339649201,1727803846960,-150.112233,0.000152,2]
[339649202,1727803846970,-150.112233,0.000152,2]
[339649203,1727803846980,-150.112233,0.000152,2]
[339649204,1727803846989,-150.112233,0.000152,2]
[339649205,1727803846999,-150.112233,0.000152,2]
[339649206,1727803847009,-150.112233,0.000152,2]
[339649207,1727803847019,-150.112233,0.000152,2]
[339649208,1727803847033,-150.112233,0.000152,2]
[339649209,1727803847043,-150.112233,0.000152,2]
[339649210,1727803847053,-150.112233,0.000152,2]
[339649211,1727803847063,-150.112233,0.000152,2]
[339649212,1727803847073,-150.112233,0.000152,2]
[339649213,1727803847083,-150.112233,0.000152,2]
[339649215,1727803847092,-150.112233,0.000152,2]
[339649217,1727803847102,-278.573441,0.000152,2]
[339649219,1727803847112,-151.0,0.00015202,2]
[339649221,1727803847121,-151.0,0.00015202,2]
[339649223,1727803847131,-32455.8322625,0.00015212,2]
[339649224,1727803847140,-53219.4207453,0.00015212,2]
[339649225,1727803847150,-151.0,0.00015212,2]
[339649226,1727803847302,-197.478066,0.00015212,2]
[339649227,1727803847312,-151.0,0.00015212,2]
[339649228,1727803847321,-225.749196,0.00015212,2]
[339649229,1727803847331,-225.749196,0.00015212,2]
[339649230,1727803847344,-151.0,0.0001522,2]
[339649231,1727803847354,-151.0,0.0001522,2]
[339649232,1727803847364,-166.245679,0.0001522,2]
[339649233,1727803847373,-166.245679,0.0001522,2]
[339649234,1727803847384,-1000.0,0.0001522,2]
[339649235,1727803847394,-1000.0,0.0001522,2]
[339649236,1727803847404,-1000.0,0.0001522,2]
[339649237,1727803847417,-1000.0,0.0001522,2]
[339649238,1727803847428,-721.89763369,0.0001522,2]
[339649239,1727803847438,-53631.60213544,0.00015222,2]
[339649240,1727803847451,-616.0,0.00015222,2]
[339649241,1727803847858,-35439.13145881,0.00015222,2]
[339649242,1727803847869,-21128.9034218,0.00015222,2]
[339649243,1727803847879,-152.003829,0.00015222,2]
[339649244,1727803847888,-151.0,0.00015222,2]
[339649245,1727803847898,-151.0,0.00015222,2]
[339649246,1727803847907,-151.0,0.00015222,2]
[339649247,1727803847917,-285.099226,0.00015222,2]
[339649248,1727803847927,-285.099226,0.00015222,2]
[339649249,1727803847937,-151.700095,0.00015222,2]
[339649250,1727803847946,-151.0,0.00015222,2]
[339649251,1727803847955,-1489.663299,0.00015222,2]
[339649252,1727803847964,-1489.663299,0.00015222,2]
[339649253,1727803847974,-151.0,0.00015222,2]
[339649254,1727803847984,-151.0,0.00015222,2]
[339649255,1727803847993,-790.018664,0.00015222,2]
[339649256,1727803848003,-790.018664,0.00015222,2]
[339649257,1727803848012,-1899.30512,0.00015222,2]
[339649258,1727803848022,-1899.30512,0.00015222,2]
[339649259,1727803848035,-1899.30512,0.00015222,2]
[339649260,1727803848044,-1899.30512,0.00015222,2]
[339649261,1727803848053,-151.0,0.00015222,2]
[339649262,1727803848062,-151.0,0.00015222,2]
[339649263,1727803848071,-151.0,0.00015222,2]
[339649264,1727803848080,-151.0,0.00015222,2]
[339649265,1727803848089,-1264.021567,0.00015222,2]
[339649266,1727803848100,-1264.021567,0.00015222,2]
[339649267,1727803848110,-916.627379,0.00015222,2]
[339649268,1727803848120,-916.627379,0.00015222,2]
[339649269,1727803848131,-916.627379,0.00015222,2]
[339649270,1727803848141,-916.627379,0.00015222,2]
[339649271,1727803848151,-158.492693,0.00015222,2]
[339649272,1727803848161,-158.492693,0.00015222,2]
[339649273,1727803848172,-158.492693,0.00015222,2]
[339649274,1727803848182,-158.492693,0.00015222,2]
[339649275,1727803848191,-411.888281,0.00015222,2]
[339649276,1727803848201,-411.888281,0.00015222,2]
[339649277,1727803848211,-604.159524,0.00015222,2]
[339649278,1727803848221,-604.159524,0.00015222,2]
[339649279,1727803848231,-679.35442,0.00015222,2]
[339649280,1727803848240,-679.35442,0.00015222,2]
[339649281,1727803848250,-129823.32905,0.00015222,2]
[339649282,1727803848259,-89282.20672042,0.00015222,2]
[339649327,1727804879612,98578.3875772,0.0001,2]
[339649434,1727805032022,-3000.0,0.00010437,2]
[339649436,1727805032033,-300.0,0.00010858,2]
[339649438,1727805032043,-300.0,0.00010858,2]
[339649440,1727805032054,-1498.76501149,0.00010859,2]
[339649442,1727805032064,-3088.42646448,0.00010859,2]
[339649447,1727805032133,-29684.8415875,0.00010859,2]
[339649449,1727805032143,-553.86,0.00010959,2]
[339649451,1727805032152,-250.0,0.00011133,2]
[339649452,1727805032163,-250.0,0.00011164,2]
[339649453,1727805032174,-250.0,0.00011194,2]
[339649455,1727805032185,-250.0,0.00011225,2]
[339649457,1727805032196,-250.0,0.00011255,2]
[339649458,1727805032206,-250.0,0.00011286,2]
[339649460,1727805032215,-250.0,0.00011316,2]
[339649462,1727805032226,-250.0,0.00011347,2]
[339649463,1727805032236,-250.0,0.00011377,2]
[339649465,1727805032245,-250.0,0.00011408,2]
[339649467,1727805032257,-250.0,0.00011438,2]
[339649470,1727805032269,-250.0,0.00011469,2]
[339649472,1727805032278,-250.0,0.000115,2]
[339649474,1727805032288,-13193.61046787,0.000115,2]
[339649476,1727805032300,-2112.99295383,0.000115,2]
[339649480,1727805032334,-1004.25000015,0.000115,2]
[339649482,1727805032345,-1757.80804678,0.000115,2]
[339649485,1727805032357,-5483.82677558,0.000115,2]
[339649560,1727805037765,-1347.51175579,0.000115,2]
[339649562,1727805037775,-250.0,0.0001153,2]
[339649564,1727805037785,-250.0,0.00011561,2]
[339649566,1727805037796,-250.0,0.00011591,2]
[339649568,1727805037806,-250.0,0.00011622,2]
[339649569,1727805037816,-250.0,0.00011647,2]
[339649571,1727805037826,-250.0,0.00011652,2]
[339649573,1727805037835,-250.0,0.00011683,2]
[339649575,1727805037845,-250.0,0.00011713,2]
[339649577,1727805037856,-413.4175049,0.00011726,2]
[339649579,1727805037865,-247.298473,0.00011771,2]
[339649581,1727805037875,-420.0,0.00011933,2]
[339649582,1727805037887,-300.0,0.00011944,2]
[339649584,1727805037897,-170.248422,0.00012273,2]
[339649586,1727805037908,-170.248422,0.00012288,2]
[339649588,1727805037918,-170.248422,0.00012303,2]
[339649590,1727805037929,-743.52705645,0.00012319,2]
[339649591,1727805037938,-170.248422,0.00012319,2]
[339649593,1727805037948,-756.1442961,0.00012325,2]
[339649595,1727805037958,-170.248422,0.00012334,2]
[339649596,1727805037968,-587.0,0.00013115,2]
[339649598,1727805037977,-2094.50163314,0.00013121,2]
[339649602,1727805038007,-1346.5,0.00013121,2]
[339649604,1727805038023,-1996.02793237,0.00013121,2]
[339649606,1727805038039,-1437.35411086,0.00013121,2]
[339649607,1727805038052,-3275.29183372,0.00013121,2]
[339649608,1727805038062,-3416.734169,0.00013699,2]
[339649610,1727805038074,-252.73107117,0.00013699,2]
[339649634,1727805039762,-512.60524083,0.00013699,2]
[339649635,1727805039771,-103.30475917,0.00013708,2]
[339649636,1727805039783,-4214.96600583,0.00013708,2]
[339649637,1727805039795,-154.0,0.000139,2]
[339649638,1727805039806,-154.0,0.0001437,2]
[339649639,1727805039815,-3416.734169,0.00014384,2]
[339649640,1727805039825,-823.0,0.00014414,2]
[339649641,1727805039835,-10149.67551003,0.00014804,2]
[339649642,1727805039845,-1000.0,0.00015023,2]
[339649643,1727805039855,-1118.62392345,0.00015035,2]
[339649644,1727805039865,-7193.10270582,0.00015055,2]
[339649645,1727805039875,-500.0,0.00015058,2]
[339649646,1727805039887,-3416.734169,0.00015068,2]
[339649647,1727805039901,-36161.3441679,0.00015113,2]
[339649648,1727805039911,-54901.6910571,0.00015113,2]
[339649650,1727805039921,-279.27366867,0.00015114,2]
[339649651,1727805039931,-500.0,0.00015114,2]
[339649652,1727805039940,-305.56512848,0.00015114,2]
[339649653,1727805039949,-500.0,0.00015114,2]
[339649654,1727805039959,-500.0,0.00015114,2]
[339649655,1727805039968,-500.0,0.00015114,2]
[339649656,1727805039977,-228.79115046,0.00015114,2]
[339649657,1727805039987,-500.0,0.00015114,2]
[339649658,1727805039996,-500.0,0.00015114,2]
[339649659,1727805040005,-500.0,0.00015114,2]
[339649660,1727805040015,-584.6320485,0.00015114,2]
[339649661,1727805040024,-500.0,0.00015114,2]
[339649662,1727805040034,-365.89075114,0.00015114,2]
[339649663,1727805040043,-500.0,0.00015114,2]
[339649664,1727805040053,-500.0,0.00015114,2]
[339649665,1727805040062,-500.0,0.00015114,2]
[339649666,1727805040073,-500.0,0.00015114,2]
[339649667,1727805040083,-500.0,0.00015114,2]
[339649668,1727805040096,-500.0,0.00015114,2]
[339649669,1727805040105,-500.0,0.00015114,2]
[339649670,1727805040116,-500.0,0.00015114,2]
[339649671,1727805040126,-500.0,0.00015114,2]
[339649672,1727805040138,-500.0,0.00015114,2]
[339649673,1727805040147,-72322.6883358,0.00015115,2]
[339649674,1727805040157,-109803.382114,0.00015115,2]
[339649675,1727805040166,-68054.52630475,0.00015125,2]
[339649676,1727805040179,-4268.16203105,0.00015125,2]
[339649677,1727805040188,-3881.88992293,0.00015125,2]
[339649678,1727805040200,-16810.8047767,0.00015125,2]
[339649721,1727805042792,-500.0,0.00015112,2]
[339649722,1727805042802,-229.37009261,0.00015112,2]
[339649723,1727805042811,-500.0,0.00015112,2]
[339649724,1727805042820,-361.49067764,0.00015112,2]
[339649725,1727805042831,-138.50932236,0.00015112,2]
[339649726,1727805042840,-167.73866746,0.00015112,2]
[339649727,1727805042855,-332.26133254,0.00015112,2]
[339649728,1727805042865,-500.0,0.00015112,2]
[339649729,1727805042874,-500.0,0.00015112,2]
[339649730,1727805042885,-234.51081961,0.00015112,2]
[339649731,1727805042895,-339.30749644,0.00015112,2]
[339649732,1727805042904,-500.0,0.00015112,2]
[339649733,1727805042913,-500.0,0.00015112,2]
[339649734,1727805042922,-500.0,0.00015112,2]
[339649735,1727805042932,-500.0,0.00015112,2]
[339649736,1727805042941,-500.0,0.00015112,2]
[339649737,1727805042951,-500.0,0.00015112,2]
[339649738,1727805042960,-500.0,0.00015112,2]
[339649739,1727805042969,-500.0,0.00015112,2]
[339649740,1727805042979,-500.0,0.00015112,2]
[339649741,1727805042991,-500.0,0.00015112,2]
[339649742,1727805043001,-500.0,0.00015112,2]
[339649743,1727805043012,-500.0,0.00015112,2]
[339649744,1727805043023,-500.0,0.00015112,2]
[339649745,1727805043033,-500.0,0.00015112,2]
[339649746,1727805043044,-14.22981345,0.00015112,2]
[339649762,1727805045734,-559.23493031,0.00015112,2]
[339649763,1727805045746,-500.0,0.00015112,2]
[339649764,1727805045757,-500.0,0.00015112,2]
[339649765,1727805045769,-500.0,0.00015112,2]
[339649766,1727805045780,-500.0,0.00015112,2]
[339649767,1727805045791,-500.0,0.00015112,2]